Cogmind - Beta 16 @@@ ROGUE MODE // 2026.02.11 @ 12:09:26 Player: rootmos Result: Destroyed by G-47 Trooper with Particle Gun Performance ------------- Evolutions (2) 1000 Regions Visited (3) 600 Robots Destroyed (55) 275 Value Destroyed (1936) 1936 Prototype IDs (3) 60 Alien Tech Used (0) 0 Bonus (0) 0 TOTAL SCORE: 3871 Bonus ------- None Cogmind --------- Core Integrity 0/550 Matter 225/300 Energy 37/100 System Corruption 0% Temperature Cool (27) Movement Core (50) Location -8/Materials Parts ------- > --- POWER (1) -------- (None) > --- PROPULSION (4) --- (None) > --- UTILITY (4) ------ (None) > --- WEAPON (2) ------- (None) > --- INVENTORY (5) ---- (None) Peak State ------------ > --- POWER ------------ Light Nuclear Core > --- PROPULSION ------- Aluminum Leg Aluminum Leg Aluminum Leg Aluminum Leg > --- UTILITY ---------- Improved Heat Sink Small Storage Unit High-capacity Battery Improved Light Armor Plating > --- WEAPON ----------- EM Pulse Cannon High-powered Shotgun > --- INVENTORY -------- Improved Ion Engine Shield Generator Pulse Rifle EM Pulse Cannon Advanced Beam Cannon [Rating: 22] Favorites ----------- Power Ion Engine Engine Ion Engine Power Core Light Nuclear Core Propulsion Aluminum Leg Leg Aluminum Leg Utility Small Storage Unit Device Improved Heat Sink Storage Small Storage Unit Protection Light Armor Plating Weapon Light Assault Rifle Energy Gun Beam Rifle Energy Cannon Advanced Beam Cannon Ballistic Gun Light Assault Rifle Launcher EMP Blaster Special Melee Weapon Datajack Build | -11 -10 -9 -8 ------- Run | Yrd Mat Mat Mat Slots Evolved 4 | . . 2 2 Power . | . . . . Propulsion 2 | . . 1 1 Utility 2 | . . 1 1 Weapon . | . . . . Parts Attached 65 | . 23 27 15 Power 12 | . 5 3 4 Engine 9 | . 4 2 3 Core 3 | . 1 1 1 Reactor . | . . . . Propulsion 21 | . 10 8 3 Treads . | . . . . Leg 21 | . 10 8 3 Wheel . | . . . . Hover . | . . . . Flight . | . . . . Utility 13 | . 3 7 3 Device 6 | . 2 3 1 Storage 1 | . . 1 . Processor . | . . . . Hackware . | . . . . Protection 6 | . 1 3 2 Artifact . | . . . . Weapon 19 | . 5 9 5 Energy Gun 7 | . 3 3 1 Energy Cannon 6 | . . 3 3 Ballistic Gun 4 | . 1 2 1 Ballistic Cannon . | . . . . Launcher 1 | . . 1 . Special Weapon . | . . . . Impact Weapon . | . . . . Slashing Weapon . | . . . . Piercing Weapon . | . . . . Special Melee Weapon 1 | . 1 . . Unidentified Prototypes 3 | . . 3 . Parts Lost 33 | . 5 5 23 Power 8 | . 3 1 4 Propulsion 8 | . . . 8 Utility 8 | . . 2 6 Weapon 9 | . 2 2 5 Highest Loss Streak 19 | . 1 3 19 To Critical Strikes 1 | . . 1 . Average Backups 7 | 6 6 7 5 Power . | 1 . . . Propulsion 2 | 4 2 2 . Utility 1 | . 1 2 1 Weapon 1 | 1 1 2 2 Tool/Special . | . . . . Unused Backups 9 | . 6 2 1 Power 2 | . . 2 . Propulsion 4 | . 4 . . Utility 3 | . 2 . 1 Weapon . | . . . . Tool/Special . | . . . . Average Slot Usage (%) 96 | . 98 99 82 Engine 8 | . 9 8 6 Core 2 | . 3 2 1 Leg 30 | . 28 33 29 Device 8 | . 2 11 13 Storage 13 | . 14 13 9 Protection 8 | . 11 7 6 Energy Gun 4 | . 8 3 . Energy Cannon 5 | . . 8 8 Ballistic Gun 12 | . 19 9 6 Peak Build Rating 22 | 6 10 18 22 Average Rating 13 | 6 7 15 17 On Entrance 9 | 6 6 9 17 Avg Prop Armor Cover (%) 15 | . . . 15 Naked Turns 5 | . . . 5 Heaviest Build 29 | 11 14 24 29 Greatest Support 40 | 20 20 30 40 Greatest Overweight (x) 4 | . . . 4 Average Overweight (x) . | . . . . Largest Inventory Capacity 8 | 8 8 8 8 Average Capacity 7 | 8 8 8 7 Most Carried 8 | 6 8 8 8 Average Carried 7 | 6 6 7 5 Final Capacity 8 | 8 8 8 5 Final Carried 8 | 6 8 8 . Class Distribution -------------------- 66% | Scavenger-Mutant 33% | Mutant Dominant Class ---------------- Mutant | -10/Materials Scavenger-Mutant | -9/Materials Scavenger-Mutant | -8/Materials Resources | -11 -10 -9 -8 ----------- Run | Yrd Mat Mat Mat Matter Collected 1255 | 200 383 520 152 Remotely . | . . . . Salvage Created 2348 | . 676 1241 431 Parts 135 | . 39 72 24 Haulers Intercepted 3 | . 1 2 . Recyclers Shooed . | . . . . Parts Field Recycled . | . . . . Retrieved Matter . | . . . . Parts Self-Destructed . | . . . . Prevented . | . . . . Parts Restored . | . . . . Kills | -11 -10 -9 -8 ------- Run | Yrd Mat Mat Mat Combat Hostiles Destroyed 49 | . 15 26 8 Guns 24 | . 13 10 1 Cannons 19 | . . 15 4 AOE 4 | . 2 1 1 Classes Destroyed 8 | . 2 5 1 Worker 2 | . . 1 1 Builder 1 | . . 1 . Hauler 3 | . 1 2 . Swarmer 3 | . . 3 . Grunt 37 | . 15 16 6 Brawler 1 | . . 1 . Sentry 7 | . . 6 1 Specialist 1 | . . . 1 Best Kill Streak 6 | . 3 6 5 Combat Bots Only 5 | . 3 5 4 Max Kills in Single Turn 2 | . 1 2 2 Gunslinging . | . . . . Exploded 1 | . 1 1 1 Melee . | . . . . Uniques/NPCs Destroyed . | . . . . Combat | -11 -10 -9 -8 -------- Run | Yrd Mat Mat Mat Hostile Shots Fired 429 | . 123 133 173 Missed 136 | . 44 43 49 Hits 293 | . 79 90 124 Melee 10 | . . . 10 Projectile 283 | . 79 90 114 Critical Strikes 13 | . 1 2 10 Damage Taken 4322 | . 952 1129 2241 Core 963 | . 189 212 562 Absorbed by Shields 17 | . . . 17 Redirected to Shielding 26 | . 26 . . Core Remaining (%) 57 | 100 24 47 . Volleys Fired 190 | . 74 76 40 Largest 2 | . 2 2 2 Hottest 131 | . 70 124 131 Shots Fired 369 | . 143 150 76 Gun 250 | . 143 81 26 Cannon 117 | . . 67 50 Launcher 2 | . . 2 . Special . | . . . . Kinetic 202 | . 104 72 26 Thermal 122 | . 22 76 24 Explosive . | . . . . Electromagnetic 45 | . 17 2 26 Robot Hit Streak 12 | . 12 11 9 Robot Miss Streak 5 | . 3 4 5 Penetration Max . | . . . . Secondary Targets 4 | . 4 . . Max Gunslinging Chain 1 | . 1 . . Shots Hit Robots 233 | . 97 84 52 Core Hits 104 | . 40 41 23 Critical Kills 1 | . . . 1 Critical Parts Destroyed 1 | . 1 . . Critical Strikes 8 | . 4 3 1 Burn 6 | . 3 3 . Meltdown 1 | . . . 1 Destroy 1 | . 1 . . Melee Attacks 2 | . 2 . . Impact . | . . . . Slashing . | . . . . Piercing . | . . . . Sneak Attacks 2 | . 2 . . Combat Hostiles . | . . . . Follow-up Attacks . | . . . . Damage Inflicted 3945 | . 1058 1617 1270 Guns 1921 | . 934 663 324 Cannons 1744 | . . 904 840 Explosions 280 | . 124 50 106 Melee . | . . . . Ramming . | . . . . Kinetic 1476 | . 577 575 324 Thermal 1723 | . 297 992 434 Explosive . | . . . . Electromagnetic 746 | . 184 50 512 Impact . | . . . . Slashing . | . . . . Piercing . | . . . . Highest Corruption 4 | . 4 . . Average Corruption 3 | . 3 . . Corruption Purged . | . . . . Corruption Blocked . | . . . . Effects 18 | . 18 . . Message Errors 2 | . 2 . . Matter Fused 6 | . 6 . . Heat Flow Errors 1 | . 1 . . Energy Discharges 4 | . 4 . . Data Loss (minor) 2 | . 2 . . Weapon Failures 3 | . 3 . . Overload Shots . | . . . . Overflow Damage 48 | . . . 48 Projectiles . | . . . . Explosions 48 | . . . 48 Melee . | . . . . Knockbacks . | . . . . Impact . | . . . . Kinetic . | . . . . Secondary . | . . . . Self-Inflicted Damage 99 | . . . 99 Shots 2 | . . . 2 Rammed . | . . . . Targets Rammed . | . . . . Kicked . | . . . . Crushed . | . . . . Highest Temperature 330 | . 330 58 194 Average Temperature 56 | . 81 11 64 Received Heat Transfer 1845 | . 537 474 834 Effects 1 | . 1 . . Damage (minor) 1 | . 1 . . Siege Activations . | . . . . Martial Activations . | . . . . Shielding Activations . | . . . . Robots Disrupted 1 | . . . 1 Combat Hostiles 1 | . . . 1 Robots Corrupted 1 | . . . 1 Combat Hostiles 1 | . . . 1 Parts Fried 3 | . 1 . 2 Impact Corruptions . | . . . . Robots Melted 1 | . . . 1 Combat Hostiles 1 | . . . 1 Parts Melted 10 | . 2 6 2 Heat Transferred 3654 | . 840 2072 742 Parts Sabotaged . | . . . . Parts Stolen . | . . . . Parts Stripped . | . . . . Power Chain Reactions 3 | . 2 . 1 Alert | -11 -10 -9 -8 ------- Run | Yrd Mat Mat Mat Maximum Alert Level 1 | . . 1 1 Low Security (%) 69 | 100 100 50 71 Level 1 30 | . . 49 28 Level 2 . | . . . . Level 3 . | . . . . Level 4 . | . . . . Level 5 . | . . . . High Security . | . . . . Max Security . | . . . . Peak Influence 342 | . 102 342 248 Initial 138 | . . 35 138 Average 123 | . 51 162 144 Influence Increases 1511 | . 448 733 330 Destroy 0b10 Robot/C 980 | . 300 520 160 Destroy 0b10 Robot/NC 30 | . 5 20 5 Destroy Leader 216 | . 62 114 40 Successful Hack 16 | . . 16 . Disable Machine 90 | . 30 30 30 Destroy Structure 59 | . 6 3 50 Lose Combat Pursuer 120 | . 45 30 45 Influence Decreases 1463 | . 362 490 611 Entered New Map 242 | . . 51 191 Time Decay 891 | . 312 389 190 Lost Part 330 | . 50 50 230 Squads Dispatched 7 | . 4 . 3 Investigation 2 | . 2 . . Extermination . | . . . . Reinforcement 5 | . 2 . 3 Assault . | . . . . Garrison . | . . . . Intercept . | . . . . Searches Triggered . | . . . . Construction Impeded . | . . . . Haulers Reinforced . | . . . . Active Scanning Responses . | . . . . Cargo Convoy Interrupts . | . . . . Stealth | -11 -10 -9 -8 --------- Run | Yrd Mat Mat Mat Distress Signals 6 | . . 6 . Communications Jammed . | . . . . Distress Signals . | . . . . Times Spotted 88 | . 24 42 22 Peak Tracking Total 8 | . 5 5 8 Tactical Retreats 7 | . 2 2 3 Traps | -11 -10 -9 -8 ------- Run | Yrd Mat Mat Mat Traps Triggered 5 | . 4 1 . Indirectly . | . . . . Trap Hack Attempts . | . . . . Triggered . | . . . . Disarmed . | . . . . Reprogrammed . | . . . . Reused . | . . . . Traps Extracted . | . . . . Installed . | . . . . Triggered . | . . . . Machines | -11 -10 -9 -8 ---------- Run | Yrd Mat Mat Mat Machines Disabled 6 | . 2 2 2 Max in Single Turn 2 | . 1 1 2 Machines Repaired . | . . . . Machines Dismantled . | . . . . Machines Sabotaged . | . . . . Overloaded Fab Kills . | . . . . Hacking | -11 -10 -9 -8 --------- Run | Yrd Mat Mat Mat Machines Accessed 4 | . 1 3 . Terminals 3 | . 1 2 . Fabricators . | . . . . Repair Stations . | . . . . Recycling Units . | . . . . Scanalyzers 1 | . . 1 . Garrison Access . | . . . . Total Hacks 10 | . 3 7 . Successful 6 | . . 6 . Failed 4 | . 3 1 . Catastrophic 2 | . 2 . . Database Lockouts . | . . . . Manual . | . . . . Terminals 7 | . 3 4 . Fabricators . | . . . . Repair Stations . | . . . . Recycling Units . | . . . . Scanalyzers 3 | . . 3 . Garrison Access . | . . . . Terminal Hacks 3 | . . 3 . Record 1 | . . 1 . Locate Traps 2 | . . 2 . Fabricator Hacks . | . . . . Repair Station Hacks . | . . . . Recycling Unit Hacks . | . . . . Scanalyzer 3 | . . 3 . Insert Component 1 | . . 1 . Analyze 1 | . . 1 . Retrieve Study 1 | . . 1 . Garrison Access Hacks . | . . . . Unauthorized Hacks . | . . . . Terminals . | . . . . Fabricators . | . . . . Repair Stations . | . . . . Recycling Units . | . . . . Scanalyzers . | . . . . Garrison Access . | . . . . Data Cores Recovered . | . . . . Used . | . . . . Hacking Detections 2 | . 1 1 . Full Trace Events 2 | . 1 1 . Feedback Events . | . . . . Feedback Blocked . | . . . . Robot Schematics Acquired . | . . . . Robots Built . | . . . . Authchips . | . . . . Time . | . . . . Total Robot Build Rating . | . . . . Part Schematics Acquired 1 | . . 1 . Parts Built . | . . . . Authchips . | . . . . Time . | . . . . Total Part Build Rating . | . . . . Part Studies Acquired 1 | . . 1 . Parts Repaired . | . . . . Time . | . . . . Parts Recycled . | . . . . Recycled Matter . | . . . . Retrieved Matter . | . . . . Retrieved Components . | . . . . Parts Scanalyzed 1 | . . 1 . Part Schematics Acquired 1 | . . 1 . Parts Damaged . | . . . . Bothacking | -11 -10 -9 -8 ------------ Run | Yrd Mat Mat Mat Used RIF Installer . | . . . . Robots Hacked 2 | . 2 . . Non-combat 2 | . 2 . . Combat . | . . . . Robot Hacks Applied 2 | . 2 . . parse_system 1 | . 1 . . no_distress 1 | . 1 . . Relay Couplers Released . | . . . . Fabnet Peak Effective % . | . . . . Robots Rewired . | . . . . Allies Hacked . | . . . . Hacks Repelled . | . . . . Allies | -11 -10 -9 -8 -------- Run | Yrd Mat Mat Mat Total Allies . | . . . . Largest Group . | . . . . Highest-Rated Group . | . . . . Highest-Rated Ally . | . . . . Total Orders . | . . . . Ally Attacks . | . . . . Total Damage . | . . . . Kills . | . . . . Allies Corrupted . | . . . . Allies Melted . | . . . . Intel | -11 -10 -9 -8 ------- Run | Yrd Mat Mat Mat Active Infowar (turns) 285 | . 109 . 176 Sensors 176 | . . . 176 Seismic 109 | . 109 . . Robot Analysis Total . | . . . . Derelict Logs Recovered . | . . . . Drone Launches . | . . . . Drone Recoveries . | . . . . Exploration | -11 -10 -9 -8 ------------- Run | Yrd Mat Mat Mat Turns Passed 2393 | 3 769 1241 380 Spaces Moved 1503 | 3 421 867 212 Core 26 | . . . 26 Treads . | . . . . Legs 1477 | 3 421 867 186 Wheels . | . . . . Hover . | . . . . Flight . | . . . . Fastest Speed 50 | 120 120 105 50 Average Speed 112 | 120 120 108 109 Slowest Speed 250 | 120 120 120 250 Overloaded Moves . | . . . . Propulsion Burnouts . | . . . . Robots Hopped . | . . . . Potential Cave-ins 2 | . . . 2 Cave-ins Triggered . | . . . . Exploration Rate (%) 35 | 1 62 58 19 Regions Visited 3 Branch Regions . Pre-discovered Areas . | . . . . Known Exits Taken . | . . . . Unknown Exits Taken 3 | 1 1 1 . Scrap Searched . | . . . . Spaces Dug . | . . . . Terrain Destroyed 54 | . 6 . 48 Melee . | . . . . Projectile . | . . . . AOE 54 | . 6 . 48 Terrain Rammed . | . . . . Walls Destroyed . | . . . . Machines Disabled . | . . . . Actions | -11 -10 -9 -8 --------- Run | Yrd Mat Mat Mat Total 1872 | 2 566 1023 281 Wait 24 | . 10 14 . Move 1500 | 2 420 866 212 Hop . | . . . . Pick Up 28 | . 13 13 2 Fast Attach 8 | . 2 1 5 Attach 21 | . 4 6 11 Detach . | . . . . Swap 54 | . 22 24 8 Drop 45 | . 19 23 3 Fire 190 | . 74 76 40 Melee 2 | . 2 . . Ram . | . . . . Kick . | . . . . Crush . | . . . . Escape Stasis . | . . . . Rewire . | . . . . Trap . | . . . . Miscellaneous . | . . . . Route ------- -11/Scrapyard -10/Materials (discovered 3 exits: *Mat x2 / [*Min]) -9/Materials (discovered 2 exits: *Mat / [*Min]) -8/Materials History --------- Turn | Location | Event 1 | -11/Scrapyard | Discovered new exit (range 3) 4 | -11/Scrapyard | Entered Materials 338 | -10/Materials | Build established: Mutant 353 | -10/Materials | Discovered new exit (range 15) 644 | -10/Materials | Core integrity fell below 50% 676 | -10/Materials | Discovered new exit (range 15) 693 | -10/Materials | Discovered new exit (range 7) 773 | -10/Materials | Entered another Materials area 773 | -9/Materials | Evolved 2 slots: Propulsion x1, Utility x1 1046 | -9/Materials | Build established: Scavenger-Mutant 1251 | -9/Materials | Discovered new exit (range 6) 1677 | -9/Materials | Lost 3 parts (2u1w) 1827 | -9/Materials | Core integrity fell below 50% 1952 | -9/Materials | Discovered new exit (range 16) 2014 | -9/Materials | Entered another Materials area 2014 | -8/Materials | Evolved 2 slots: Propulsion x1, Utility x1 2235 | -8/Materials | Lost 4 parts (2n1u1w) 2373 | -8/Materials | Core integrity fell below 50% 2387 | -8/Materials | Core integrity fell below 20% 2394 | -8/Materials | Destroyed by G-47 Trooper with Particle Gun Last Messages --------------- 02372_ Pulse Rifle severed. 02375_ Acquired Imp. Ion Engine. 02376_ Adv. Beam Cannon severed. 02377_ Penetrated by Slug. 02380_ Acquired Adv. Beam Cannon. 02383_ Penetrated by Slug. 02383_ Imp. Ion Engine destroyed. 02383_ Adv. Beam Cannon destroyed. 02386_ Slug penetrates Wall. 02386_ Critical hit (Burn: +37). 02386_ Slug penetrates L-31 Rogue. 02386_ L-31 Rogue suffers critical hit (Destroy). 02389_ Penetrated by Slug. 02389_ Shield Generator destroyed. 02389_ Imp. Ion Engine destroyed. 02389_ Penetrated by Slug. 02390_ ALERT: Suspicious intruders detected, dispatching Cutter reinforcements to area. 02394_ Critical hit (Burn: +37). Map ----- +----------------------------------------------------+ | | | | | | | | | | | | | | | | | | | ???????????????????????????#####?????????????????? | | ?????????????????########### ? #????????????? | | ?????????????????# # """ #????????????? | | ?????????????????# # """"" #????????????? | | ?????????????????# # """"" #????????????? | | ?????????????????# # """"" #????????????? | | ?????????????????# ! # """ #????????????? | | ?????????????????# ![ # #????????????? | | ?????????????????# * # = #????????????? | | ?????????????????# [[ # #????????????? | | ?????????????????#####/#########;############ # | | ???????????????????# !%* = | | ???????????????????# | | ???????????????????###+#####;;;;;;;;;######## # | | ???????????????????# ;a #??????????? | | ????????????????H??# g;; = #####??????? | | ???????????????????# """ @ ;# ## ??????? | | ???????????????????# """ ;# [ # ??????? | | ???????????????????# """ ;# ! # #??????? | | ???????????????????# ;# = # #??????? | | ???????????????????# ;# * # #??????? | | ???????????????????#########;# %=! # #??????? | | ???????????????????????????##; = ##?????? | | ????????????????????????????##; ##+## [ #?????? | | ?????????????????????????????##### %% #?????? | | ??????????????????????????? =%=[= ####### | | ??????????????????????????# ### "%" | | ??????????????????????????# !! # #####/######## | | ????????????????????????? + !! # #?# #????? | | ????????????????????????? # ! # #?# """ #????? | | ??????????????????????????# # #?# """ #????? | | ??????????????????????????# # #?# """ #????? | | ??????????????????????????########+#?# #????? | | ?????????????????????????????????????# """ #????? | | ?????????????????????????????????????# """ #????? | | ?????????????????????????????????????# """ #????? | | ?????????????????????????????????????# #????? | | ?????????????????????????????????????# """![#????? | | ?????????????????????????????????????# """ #????? | | ?????????????????????????????????????# """ ###### | | ?????????????????????????????????????# # | +----------------------------------------------------+ Best States ------------- Heat Dissipation 45 Energy Generation 14 Energy Capacity 515 Matter Stores 300 Matter Capacity 300 Sight Range 16 Robot Scan Range 14 Terrain Scan Density 10 Armor Coverage 150 Core Shielding 20 Evasion (%) 55 Item Schematics ----------------- Aluminum Leg | -9/Materials | Scanalyzed Robot Schematics ------------------ None Fabricated ------------ Nothing Repaired ---------- Nothing Studied --------- Aluminum Leg | -9/Materials | Hacked Alien Tech Used ----------------- None Achievements -------------- None Challenges ------------ None Game ------ Seed CommMomentumBlaster Manual? 0 Play Time 00:46:43 Cumulative 107.6 hours Start 2026.02.08 @ 03:05:42 End 2026.02.11 @ 12:09:26 Sessions 12 Manual Loads 0 Difficulty Rogue Special Mode None Game No. 53 Rogue 18 Adventurer 0 Explorer 35 Win Type - Total 1 Types 1/0/0/0/0/0/0/0/0/0 Lore% 29 Gallery% 35 Achievement% 27 Wizard Run 0 Options --------- Layout 0 ASCII 1 Keyboard 1 Movement Vi Keybinds 1 Fullscreen 0 Font 20/SmallcapsGlow Map View 50x62 Zoom Use 0% Tactical HUD 1 Map Filters NONE Filters NONE Steam 0 RUN: 82fd2179-86c3-4c3b-bae3-879448684527